bitfinex-derivatives/quotes_SOLF0:USTF0_20260311
["timestamp","ask_amount","ask_price","bid_price","bid_amount"]
[1773233916456,2.56917082,85.21,85.164,3.67832165]
[1773233917261,3.93443702,85.208,85.164,3.67832165]
[1773233918460,3.93443702,85.208,85.168,3.91814223]
[1773233919360,3.93443702,85.208,85.17,3.91814223]
[1773233921462,3.93443702,85.208,85.171,14.48414223]
[1773233923162,10.562,85.207,85.171,14.48414223]
[1773233923564,10.562,85.207,85.171,3.91814223]
[1773233924363,14.25829219,85.207,85.171,3.91814223]
[1773233928170,3.69629219,85.213,85.171,3.91814223]
[1773233929465,2.56917082,85.22,85.172,10.566]
[1773233929466,3.69629219,85.21,85.172,10.566]
[1773233929672,6.26546301,85.21,85.172,10.566]
[1773233929870,3.95010819,85.209,85.173,3.75830205]
[1773233931864,3.95010819,85.209,85.174,10.566]
[1773233932662,10.559,85.229,85.18,3.75830205]
[1773233932865,10.88979316,85.255,85.18,3.75830205]
[1773233932866,3.95010819,85.219,85.18,3.75830205]
[1773233933868,3.95010819,85.219,85.183,10.564]
[1773233934968,10.56,85.217,85.18,3.75830205]
[1773233935367,3.95010819,85.219,85.18,3.75830205]
[1773233936370,3.95010819,85.219,85.16,21.4351063]
[1773233936371,3.95010819,85.219,85.161,3.75830205]
[1773233936679,3.95010819,85.217,85.161,3.75830205]
[1773233937372,10.561,85.209,85.171,10.566]
[1773233938877,3.95010819,85.202,85.165,3.75830205]
[1773233939075,3.95010819,85.199,85.165,3.75830205]
[1773233940377,10.563,85.194,85.165,3.75830205]
[1773233940579,3.95010819,85.199,85.165,3.75830205]
[1773233941778,10.563,85.197,85.165,3.75830205]
[1773233942380,3.95010819,85.196,85.153,3.75830205]
[1773233943179,14.51310819,85.196,85.157,3.75830205]
[1773233944082,3.95010819,85.196,85.162,3.75830205]
[1773233944483,3.95010819,85.196,85.141,3.75830205]
[1773233944884,10.565,85.183,85.144,3.75830205]
[1773233945273,3.95010819,85.186,85.144,3.75830205]
[1773233945585,2.57099037,85.2,85.154,3.75830205]
[1773233945780,3.95010819,85.198,85.154,3.75830205]
[1773233946083,10.563,85.196,85.162,10.567]
[1773233946282,2.93364786,85.195,85.162,10.567]
[1773233946578,2.93364786,85.194,85.162,10.567]
[1773233946782,10.563,85.196,85.162,10.567]
[1773233946982,2.93340566,85.195,85.162,10.567]
[1773233947284,10.562,85.207,85.17,3.75830205]
[1773233947486,2.93310447,85.206,85.17,3.75830205]
[1773233947785,2.93310447,85.205,85.17,3.75830205]
[1773233948078,2.93310447,85.204,85.17,3.75830205]
[1773233948278,2.93310447,85.203,85.17,3.75830205]
[1773233948482,10.562,85.205,85.171,10.566]
[1773233948688,2.9331011,85.204,85.171,10.566]
[1773233948886,2.9331011,85.203,85.17,3.75830205]
[1773233949183,2.9331011,85.202,85.17,3.75830205]
[1773233949372,2.9331011,85.201,85.17,3.75830205]
[1773233949575,10.562,85.205,85.17,3.75830205]
[1773233949786,10.562,85.201,85.17,3.75830205]
[1773233950188,2.93314215,85.2,85.17,3.75830205]
[1773233950484,10.562,85.201,85.17,3.75830205]
[1773233950689,2.93314215,85.2,85.17,3.75830205]
[1773233950984,3.95010819,85.209,85.17,3.75830205]
[1773233951178,3.95010819,85.207,85.15,2.57099037]
[1773233951376,3.95010819,85.199,85.147,3.75830205]
[1773233951576,2.93314215,85.198,85.147,3.75830205]
[1773233951775,3.95010819,85.196,85.147,3.75830205]
[1773233951976,2.93314215,85.195,85.147,3.75830205]
[1773233952181,6.88325034,85.194,85.147,3.75830205]
[1773233952387,10.563,85.191,85.151,10.568]
[1773233952586,2.93314215,85.19,85.152,3.75830205]
[1773233952786,10.563,85.191,85.152,3.75830205]
[1773233952987,2.93348827,85.19,85.152,3.75830205]
[1773233953181,10.563,85.191,85.152,3.75830205]
[1773233953381,2.9334879,85.19,85.155,10.568]
[1773233953582,10.563,85.191,85.155,10.568]
[1773233954789,10.563,85.191,85.155,14.32630205]
[1773233954989,3.95010819,85.194,85.16,3.75830205]
[1773233955184,2.93340583,85.193,85.16,3.75830205]
[1773233955386,3.95010819,85.194,85.16,3.75830205]
[1773233955688,2.93340527,85.193,85.16,3.75830205]
[1773233955987,3.95010819,85.194,85.16,3.75830205]
[1773233956178,10.562,85.207,85.164,3.75830205]
[1773233956378,2.9331067,85.206,85.164,3.75830205]
[1773233956577,2.9331067,85.205,85.164,3.75830205]
[1773233956782,3.95010819,85.201,85.164,3.75830205]
[1773233956980,10.562,85.202,85.164,3.75830205]
[1773233956981,6.88321489,85.2,85.164,3.75830205]
[1773233957184,2.9331067,85.199,85.164,3.75830205]
[1773233957389,3.95010819,85.2,85.167,10.566]
[1773233957687,2.93334367,85.199,85.167,10.566]
[1773233957887,2.93334367,85.198,85.164,3.75830205]
[1773233958090,3.95010819,85.2,85.164,3.75830205]
[1773233958288,6.88345186,85.199,85.164,3.75830205]
[1773233958490,2.93334367,85.198,85.164,3.75830205]
[1773233958788,3.95010819,85.199,85.164,3.75830205]
[1773233958988,2.93334367,85.198,85.164,3.75830205]
[1773233959189,3.95010819,85.199,85.164,3.75830205]
[1773233959392,2.93334367,85.198,85.164,3.75830205]
[1773233959580,2.93334367,85.197,85.164,3.75830205]
[1773233959784,3.95010819,85.199,85.164,3.75830205]
[1773233960082,2.93334505,85.198,85.164,3.75830205]
[1773233960390,2.93334505,85.197,85.165,10.567]
[1773233960593,3.95010819,85.199,85.165,10.567]
[1773233960989,3.95010819,85.199,85.164,3.75830205]
[1773233961290,2.93334468,85.198,85.164,3.75830205]
[1773233961486,4.05241524,85.195,85.144,25.11108928]
[1773233961682,4.05241524,85.189,85.146,3.67598298]
[1773233961888,2.93334468,85.188,85.146,3.67598298]
[1773233962086,4.05241524,85.189,85.146,3.67598298]
[1773233962690,4.05241524,85.209,85.146,3.67598298]
[1773233962891,4.05241524,85.207,85.146,3.67598298]
[1773233963086,4.05241524,85.205,85.146,3.67598298]
[1773233963390,10.563,85.194,85.158,10.568]
[1773233963589,2.93344626,85.193,85.158,14.24398298]
[1773233963782,2.93340574,85.192,85.158,14.24398298]
[1773233963989,2.93340574,85.191,85.159,3.67598298]
[1773233964184,10.564,85.186,85.159,3.67598298]
[1773233964391,4.05241524,85.199,85.159,3.67598298]
[1773233964589,4.05241524,85.197,85.159,3.67598298]
[1773233964786,2.93348802,85.196,85.159,3.67598298]
[1773233964990,2.93348802,85.195,85.159,3.67598298]
[1773233965193,2.93348802,85.194,85.159,3.67598298]
[1773233965390,13.49648802,85.193,85.159,3.67598298]
[1773233965590,2.93348802,85.192,85.159,3.67598298]
[1773233965792,2.93348802,85.191,85.159,3.67598298]
[1773233965989,2.93348802,85.19,85.159,3.67598298]
[1773233966190,10.563,85.193,85.159,3.67598298]
[1773233966491,2.93348783,85.192,85.159,3.67598298]
[1773233966789,2.93348783,85.191,85.159,3.67598298]
[1773233966991,2.93348783,85.19,85.159,3.67598298]
[1773233967191,10.563,85.193,85.159,3.67598298]
[1773233967390,2.93348783,85.192,85.159,3.67598298]
[1773233967590,2.93348783,85.191,85.159,3.67598298]
[1773233967787,4.05241524,85.188,85.15,10.568]
[1773233967992,2.93348783,85.187,85.151,3.67598298]
[1773233968189,4.05241524,85.188,85.151,3.67598298]
[1773233968190,2.93348783,85.186,85.151,3.67598298]
[1773233968395,2.93348783,85.185,85.151,3.67598298]
[1773233968599,4.05241524,85.188,85.151,3.67598298]
[1773233968800,2.93354703,85.187,85.151,3.67598298]
[1773233968996,2.93354703,85.186,85.151,3.67598298]
[1773233969202,10.564,85.187,85.151,3.67598298]
[1773233969401,2.93354685,85.186,85.151,3.67598298]
[1773233969603,10.564,85.187,85.151,3.67598298]
[1773233969902,2.93354685,85.186,85.151,3.67598298]
[1773233970098,10.564,85.187,85.151,3.67598298]
[1773233970999,6.98600233,85.186,85.151,3.67598298]
[1773233971204,2.93394698,85.185,85.151,3.67598298]
[1773233971398,2.93394698,85.184,85.151,3.67598298]
[1773233971594,2.93394698,85.183,85.151,3.67598298]
[1773233971810,2.93394698,85.182,85.151,3.67598298]
[1773233972103,4.05241524,85.186,85.151,3.67598298]
[1773233972306,2.9337866,85.185,85.151,3.67598298]
[1773233972503,4.05241524,85.186,85.154,10.568]
[1773233972705,2.93364503,85.185,85.154,10.568]
[1773233972901,4.05241524,85.183,85.14,2.57099037]
[1773233973100,4.05241524,85.181,85.138,3.67598298]
[1773233974003,13.49878852,85.18,85.138,3.67598298]
[1773233974208,2.93378852,85.179,85.138,3.67598298]
[1773233974403,2.93378852,85.178,85.138,3.67598298]
[1773233974611,10.565,85.18,85.138,3.67598298]
[1773233975511,10.565,85.18,85.13,2.57099037]
[1773233975512,10.565,85.18,85.142,3.67598298]
[1773233976010,2.57099037,85.17,85.119,6.2212852]
[1773233976314,2.57099037,85.15,85.108,6.2212852]
[1773233976513,186.05043386,85.223,85.108,6.2212852]
[1773233976514,2.57099037,85.16,85.108,6.2212852]
[1773233976706,2.93474315,85.159,85.108,6.2212852]
[1773233976912,2.93474315,85.158,85.108,6.2212852]
[1773233977210,2.57099037,85.17,85.111,6.2212852]
[1773233977514,2.93454006,85.169,85.111,6.2212852]
[1773233977711,2.93454006,85.168,85.111,6.2212852]
[1773233978011,2.93454006,85.167,85.111,6.2212852]
[1773233978213,2.57099037,85.17,85.122,6.21882224]
[1773233978415,2.57099037,85.18,85.131,6.21882224]
[1773233978610,2.93409502,85.179,85.131,6.21882224]
[1773233978814,2.93409502,85.178,85.131,6.21882224]
[1773233979105,2.93409502,85.177,85.131,6.21882224]
[1773233979306,2.93409502,85.176,85.131,6.21882224]
[1773233979512,2.93409502,85.175,85.131,6.21882224]
[1773233979815,2.57099037,85.18,85.131,6.21882224]
[1773233980017,2.93423225,85.179,85.131,6.21882224]
[1773233980217,2.93423225,85.178,85.131,6.21882224]
[1773233980510,2.93423225,85.177,85.131,6.21882224]
[1773233980704,2.93423225,85.176,85.131,6.21882224]
[1773233980907,2.93423225,85.175,85.134,6.24721045]
[1773233981108,10.564,85.191,85.134,6.24721045]
[1773233981109,2.57099037,85.19,85.134,6.24721045]
[1773233981307,2.93413073,85.189,85.134,6.24721045]
[1773233981512,2.93413073,85.188,85.134,6.24721045]
[1773233981715,2.57099037,85.18,85.134,6.24721045]
[1773233981916,2.93413073,85.179,85.134,6.24721045]
[1773233982217,2.57099037,85.17,85.134,6.24721045]
[1773233982414,2.93413073,85.169,85.134,6.24721045]
[1773233982615,2.93413073,85.168,85.134,6.24721045]
[1773233982913,2.57099037,85.17,85.134,6.24721045]
[1773233983117,2.93443267,85.169,85.134,6.24721045]
[1773233983314,2.57099037,85.17,85.134,6.24721045]
[1773233983511,2.93443267,85.169,85.134,6.24721045]
[1773233983712,2.57099037,85.17,85.134,6.24721045]
[1773233983908,2.93443267,85.169,85.134,6.24721045]
[1773233984117,2.57099037,85.18,85.134,6.24721045]
[1773233984314,2.93433561,85.179,85.134,6.24721045]
[1773233984518,2.93433561,85.178,85.134,6.24721045]
[1773233984814,2.93433561,85.177,85.134,6.24721045]
[1773233985015,2.93433561,85.176,85.134,6.24721045]
[1773233985209,2.93433561,85.175,85.134,6.24721045]
[1773233985413,2.93433561,85.174,85.134,6.24721045]
[1773233985616,10.565,85.179,85.134,6.24721045]
[1773233985920,2.9343736,85.178,85.134,6.24721045]
[1773233986120,2.57099037,85.17,85.134,6.24721045]
[1773233986316,2.9343736,85.169,85.134,6.24721045]
[1773233986519,2.57099037,85.17,85.134,6.24721045]
[1773233986718,2.93447551,85.169,85.134,6.24721045]
[1773233986920,2.57099037,85.17,85.134,6.24721045]
[1773233987214,2.93447472,85.169,85.134,6.24721045]
[1773233987418,8.80765728,85.202,85.134,6.24721045]
[1773233987618,2.57099037,85.17,85.134,6.24721045]
[1773233987919,2.93447529,85.169,85.134,6.24721045]
[1773233988119,2.57099037,85.17,85.134,6.24721045]
[1773233988316,2.9344751,85.169,85.134,6.24721045]
[1773233988512,2.57099037,85.17,85.134,6.24721045]
[1773233989015,2.57099037,85.18,85.136,10.57]
[1773233989218,2.93433757,85.179,85.137,6.18890549]
[1773233989420,2.93433757,85.178,85.137,6.18890549]
[1773233989620,2.57099037,85.18,85.137,6.18890549]
[1773233989621,2.93433757,85.177,85.137,6.18890549]
[1773233989919,10.565,85.175,85.13,10.571]
[1773233990122,10.88979316,85.218,85.13,10.571]
[1773233990123,2.57099037,85.17,85.13,10.571]
[1773233990718,2.57099037,85.17,85.13,16.72146297]
[1773233993319,10.566,85.172,85.131,6.16384375]
[1773233993519,2.93447495,85.171,85.131,6.16384375]
[1773233993725,2.93447495,85.17,85.131,6.16384375]
[1773233994024,10.566,85.172,85.131,6.16384375]
[1773233994224,2.93447468,85.171,85.131,6.16384375]
[1773233994427,2.93447468,85.17,85.131,6.16384375]
[1773233994627,10.566,85.172,85.133,6.20346439]
[1773233994926,2.93443441,85.171,85.133,6.20346439]
[1773233995126,10.566,85.172,85.133,6.20346439]
[1773233995329,2.93443347,85.171,85.137,6.20346439]
[1773233995529,2.57331301,85.19,85.137,6.20346439]
[1773233995725,2.93405335,85.189,85.137,6.20346439]
[1773233996025,2.93405335,85.188,85.137,6.20346439]
[1773233996227,2.93405335,85.187,85.137,6.20346439]
[1773233996418,10.565,85.183,85.144,16.77204125]
[1773233997330,2.57331301,85.2,85.151,6.20304125]
[1773233997626,2.57331301,85.17,85.139,6.2055989]
[1773233997828,2.57331301,85.17,85.114,21.4351063]
[1773233997829,2.57331301,85.19,85.141,6.2055989]
[1773233998032,2.93408772,85.189,85.141,6.2055989]
[1773233998229,2.93408772,85.188,85.141,6.2055989]
[1773233998435,2.93408772,85.187,85.141,6.2055989]
[1773233998634,2.93408772,85.186,85.141,6.2055989]
[1773233998836,2.93408772,85.185,85.143,6.2055989]
[1773233999030,2.93408772,85.184,85.143,6.2055989]
[1773233999235,10.564,85.188,85.143,6.2055989]
[1773234000142,10.565,85.182,85.143,6.2055989]
[1773234000430,2.57331301,85.16,85.112,6.25456529]
[1773234000631,2.57331301,85.17,85.112,6.25456529]
[1773234000839,2.57331301,85.17,85.127,6.25456529]
[1773234001133,2.57331301,85.18,85.131,6.25456529]
[1773234001435,2.57331301,85.2,85.141,6.26916257]
[1773234001827,2.57331301,85.2,85.08,35.21]
[1773234001828,2.57331301,85.19,85.147,6.26916257]
[1773234002027,2.57331301,85.18,85.121,6.26916257]
[1773234002233,8.77310948,85.222,85.121,6.26916257]
[1773234002234,2.57331301,85.16,85.121,6.26916257]
[1773234002639,2.57331301,85.15,85.091,6.26916257]
[1773234003442,2.57331301,85.17,85.118,6.26916257]
[1773234003636,2.93473526,85.169,85.118,6.26916257]
[1773234003938,2.93473526,85.168,85.118,6.26916257]
[1773234004138,2.57331301,85.17,85.118,6.26916257]
[1773234004139,2.93473526,85.167,85.118,6.26916257]
[1773234004335,2.93473526,85.166,85.128,10.571]
[1773234004639,2.57331301,85.14,85.101,6.31982806]
[1773234005232,2.57331301,85.14,85.11,10.573]
[1773234005638,2.57331301,85.14,85.101,6.31982806]
[1773234006540,2.57331301,85.15,85.104,6.27602713]
[1773234007444,2.57331301,85.15,85.112,10.573]
[1773234007644,2.93520642,85.149,85.112,10.573]
[1773234007943,2.93520642,85.148,85.112,10.573]
[1773234008236,2.93520642,85.147,85.112,10.573]
[1773234008447,2.57331301,85.15,85.115,10.573]
[1773234008641,10.567,85.166,85.113,6.29687693]
[1773234008642,2.57331301,85.16,85.113,6.29687693]
[1773234008837,2.93484462,85.159,85.122,6.29687693]
[1773234009033,2.57331301,85.17,85.122,6.29687693]
[1773234009233,2.93473774,85.169,85.122,6.29687693]
[1773234009437,2.93473774,85.168,85.135,6.29687693]
[1773234009735,2.93447343,85.167,85.135,6.29687693]
[1773234009940,2.57331301,85.17,85.135,6.29687693]
[1773234009941,2.93467303,85.166,85.135,6.29687693]
[1773234010140,2.93467303,85.165,85.121,6.30843929]
[1773234010343,2.93467303,85.164,85.121,6.30843929]
[1773234010539,2.93467303,85.163,85.121,6.30843929]
[1773234010737,2.57331301,85.17,85.127,6.30843929]
[1773234010946,2.93467726,85.169,85.127,6.30843929]
[1773234011148,2.57331301,85.19,85.131,6.30843929]
[1773234011342,2.57331301,85.19,85.13,2.57331301]
[1773234011343,2.93425773,85.189,85.146,10.569]
[1773234011544,2.93425773,85.188,85.146,10.569]
[1773234011743,2.93425773,85.187,85.144,6.30843929]
[1773234011947,2.57331301,85.17,85.132,6.30836177]
[1773234012145,2.93425773,85.169,85.132,6.30836177]
[1773234012346,2.93425773,85.168,85.132,6.30836177]
[1773234012548,10.564,85.187,85.14,6.30836177]
[1773234012842,2.93429067,85.186,85.14,6.30836177]
[1773234013041,2.93429067,85.185,85.14,6.30836177]
[1773234013247,2.93429067,85.184,85.14,6.30836177]
[1773234013448,2.93429067,85.183,85.144,6.30836177]
[1773234013650,2.93429067,85.182,85.144,6.30836177]
[1773234013843,2.93429067,85.181,85.144,6.30836177]
[1773234014045,2.93429067,85.18,85.145,16.8177258]
[1773234014245,2.93429067,85.179,85.145,6.2487258]
[1773234014445,2.93429067,85.178,85.145,6.2487258]
[1773234014650,2.93429067,85.177,85.145,6.2487258]
[1773234014943,2.93429067,85.176,85.145,6.2487258]
[1773234015151,2.93404775,85.175,85.145,6.2487258]
[1773234015352,2.93408801,85.174,85.151,10.568]
[1773234015651,2.93412827,85.173,85.145,6.2487258]
[1773234015949,2.57331301,85.18,85.145,6.2487258]
[1773234016139,2.93409053,85.179,85.145,6.2487258]
[1773234016344,2.93409053,85.178,85.145,6.2487258]
[1773234016550,2.93409053,85.177,85.145,6.2487258]
[1773234016751,2.93409053,85.176,85.145,6.2487258]
[1773234016949,2.93409053,85.175,85.145,6.2487258]
[1773234017152,10.564,85.189,85.145,6.2487258]
[1773234017450,2.93412923,85.188,85.145,6.2487258]
[1773234017650,2.93412923,85.187,85.145,6.2487258]
[1773234017949,2.93412923,85.186,85.147,10.569]
[1773234018150,2.93412923,85.185,85.147,10.569]
[1773234018352,2.57331301,85.21,85.151,6.24508618]
[1773234018550,2.57331301,85.2,85.151,6.24508618]
[1773234018751,2.93363396,85.199,85.151,6.24508618]
[1773234018952,2.57331301,85.19,85.151,6.24508618]
[1773234019251,2.93363396,85.189,85.151,6.24508618]
[1773234019452,10.88979316,85.221,85.138,6.24508618]
[1773234019453,2.57331301,85.18,85.138,6.24508618]
[1773234019647,2.93363396,85.179,85.138,6.24508618]
[1773234019847,2.93363396,85.178,85.138,6.24508618]
[1773234020049,2.93363396,85.177,85.147,6.24859676]
[1773234020254,2.57331301,85.19,85.147,6.24859676]
[1773234020555,2.93378931,85.189,85.147,6.24859676]
[1773234020756,2.93378931,85.188,85.147,6.24859676]
[1773234020944,2.93378931,85.187,85.147,6.24859676]
[1773234021151,2.93378931,85.186,85.149,6.24857839]
[1773234021354,2.93378931,85.185,85.149,6.24857839]
[1773234021652,2.93378931,85.184,85.149,6.24857839]
[1773234021852,2.93378931,85.183,85.152,6.18138279]
[1773234022063,2.57331301,85.19,85.152,6.18138279]
[1773234022064,2.93378931,85.182,85.152,6.18138279]
[1773234022357,10.563,85.195,85.152,6.18138279]
[1773234022557,2.93378713,85.194,85.152,6.18138279]
[1773234022754,2.93378713,85.193,85.152,6.18138279]
[1773234022958,2.93378713,85.192,85.152,6.18138279]
[1773234023155,2.93378713,85.191,85.152,6.18138279]
[1773234023349,2.93378713,85.19,85.153,16.74938279]
[1773234023554,2.93378713,85.189,85.153,16.74938279]
[1773234023850,2.93378713,85.188,85.153,16.74938279]
[1773234024152,2.93378713,85.187,85.153,16.74938279]
[1773234024352,2.93378713,85.186,85.153,16.74938279]
[1773234024550,2.93378713,85.185,85.153,16.74938279]
[1773234024759,2.93378713,85.184,85.153,16.74938279]
[1773234024955,2.93378713,85.183,85.153,16.74938279]
[1773234025157,2.57331301,85.17,85.136,6.17396272]
[1773234025462,2.93378713,85.169,85.136,6.17396272]
[1773234025653,2.93378713,85.168,85.136,6.17396272]
[1773234025859,13.49978713,85.167,85.121,6.17692994]
[1773234026059,2.57331301,85.16,85.121,6.17692994]
[1773234026359,2.57331301,85.15,85.108,6.17692994]
[1773234027363,2.57331301,85.17,85.111,6.17692994]
[1773234027666,2.93474484,85.169,85.111,6.17692994]
[1773234027963,2.57331301,85.17,85.126,10.571]
[1773234027964,2.93474484,85.168,85.126,10.571]
[1773234028159,2.93474484,85.167,85.126,10.571]
[1773234028365,2.57331301,85.16,85.126,10.571]
[1773234028562,2.93474484,85.159,85.126,10.571]
[1773234028763,2.93474484,85.158,85.126,10.571]
[1773234028968,2.93474484,85.157,85.126,10.571]
[1773234029167,2.93474484,85.156,85.126,10.571]
[1773234029367,2.57331301,85.16,85.126,10.571]
[1773234029665,2.93473674,85.159,85.126,10.571]
[1773234029863,2.93473674,85.158,85.127,6.13714245]
[1773234030066,2.93473674,85.157,85.127,6.13714245]
[1773234030270,2.93473674,85.156,85.127,6.13714245]
[1773234030470,2.57331301,85.16,85.127,6.13714245]
[1773234030670,2.57331301,85.17,85.131,6.13714245]
[1773234030871,2.93459919,85.169,85.131,6.13714245]
[1773234031066,10.88979316,85.21,85.131,6.13714245]
[1773234031367,2.57331301,85.18,85.131,6.13714245]
[1773234031567,2.57331301,85.17,85.131,6.13714245]
[1773234031763,2.93419545,85.169,85.131,6.13714245]
[1773234031968,2.93419545,85.168,85.131,6.13714245]
[1773234032164,2.93419545,85.167,85.131,6.13714245]
[1773234032367,2.93419545,85.166,85.131,6.13714245]
[1773234032569,2.93419545,85.165,85.131,6.13714245]
[1773234032868,2.93419545,85.164,85.131,6.13714245]
[1773234033063,2.57331301,85.17,85.131,6.13714245]
[1773234033269,2.93443641,85.169,85.134,6.13560896]
[1773234033469,2.93443641,85.168,85.134,6.13560896]
[1773234033775,2.93443641,85.167,85.134,6.13560896]
[1773234033972,2.93443641,85.166,85.134,6.13560896]
[1773234034168,2.93443641,85.165,85.134,6.13560896]
[1773234034369,2.57331301,85.17,85.134,6.13560896]
[1773234034570,2.93447339,85.169,85.134,6.13560896]
[1773234034779,2.93447339,85.168,85.134,6.13560896]
[1773234034975,2.93447339,85.167,85.134,6.13560896]
[1773234035272,2.93447339,85.166,85.134,6.13560896]
[1773234035468,2.93447339,85.165,85.134,6.13560896]
[1773234035668,2.93447339,85.164,85.134,6.13560896]
[1773234035865,2.93447339,85.163,85.134,6.13560896]
[1773234036073,2.93447339,85.162,85.134,6.13560896]
[1773234036270,2.93447339,85.161,85.134,6.13560896]
[1773234036574,2.93447339,85.16,85.134,6.13560896]
[1773234036767,2.93447339,85.159,85.134,6.13560896]
[1773234036972,2.57331301,85.17,85.136,10.57]
[1773234037275,2.93439499,85.169,85.136,16.7300692]
[1773234037476,2.93439499,85.168,85.136,16.7300692]
[1773234037775,2.93439499,85.167,85.136,16.7300692]
[1773234037969,2.93439499,85.166,85.136,16.7300692]
[1773234038168,2.93439499,85.165,85.136,16.7300692]
[1773234038368,2.93439499,85.164,85.136,16.7300692]
[1773234038568,2.57331301,85.17,85.136,16.7300692]
[1773234038768,2.93443488,85.169,85.136,6.1600692]
[1773234039079,10.566,85.167,85.13,6.15054985]
[1773234039275,2.93443488,85.166,85.13,6.15054985]
[1773234039476,2.93443488,85.165,85.13,6.15054985]
[1773234039677,2.93443488,85.164,85.13,6.15054985]
[1773234039878,2.93443488,85.163,85.13,6.15054985]
[1773234040080,2.93443488,85.162,85.13,6.15054985]
[1773234040278,2.93443488,85.161,85.13,6.15054985]
[1773234040478,2.93443488,85.16,85.13,6.15054985]
[1773234040672,2.93443488,85.159,85.13,6.15054985]
[1773234040875,2.57331301,85.15,85.118,6.15432369]
[1773234041074,2.93443488,85.149,85.106,6.15432369]
[1773234041369,2.57331301,85.14,85.106,6.15432369]
[1773234041570,2.57331301,85.15,85.106,6.15432369]
[1773234041777,2.93500859,85.149,85.106,6.15432369]
[1773234041974,2.93500859,85.148,85.106,6.15432369]
[1773234042181,2.93500859,85.147,85.106,6.15432369]
[1773234042483,10.569,85.147,85.107,10.574]
[1773234043179,2.57331301,85.14,85.107,10.574]
[1773234043679,2.9354648,85.139,85.106,6.15432369]
[1773234043883,2.9354648,85.138,85.106,6.15432369]
[1773234044083,2.9354648,85.137,85.106,6.15432369]
[1773234044280,2.57331301,85.14,85.106,6.15432369]
[1773234044483,2.9354648,85.139,85.106,6.15432369]
[1773234044683,2.9354648,85.138,85.106,6.15432369]
[1773234044888,2.57331301,85.14,85.106,6.15432369]
[1773234045186,2.9354648,85.139,85.106,6.15432369]
[1773234045388,2.57331301,85.14,85.106,6.15432369]
[1773234045583,2.93546442,85.139,85.106,6.15432369]
[1773234045788,2.57331301,85.14,85.106,6.15432369]
[1773234045989,2.93546442,85.139,85.106,6.15432369]
[1773234046187,10.88979316,85.177,85.106,6.15432369]
[1773234046188,2.57331301,85.16,85.106,6.15432369]
[1773234046382,2.93540778,85.159,85.106,6.15432369]
[1773234046583,2.57331301,85.18,85.121,6.14512176]
[1773234047089,10.564,85.185,85.145,6.14512176]
[1773234047586,2.57331301,85.18,85.145,6.14512176]
[1773234048084,2.57331301,85.17,85.136,10.57]
[1773234048389,2.57331301,85.16,85.118,6.13836862]
[1773234049389,2.57331301,85.16,85.12,6.13836862]
[1773234051387,2.57331301,85.18,85.122,6.12509244]
[1773234052390,2.57331301,85.17,85.137,10.57]
[1773234053595,2.5733679,85.17,85.137,10.57]
[1773234054694,2.5733679,85.17,85.134,6.12628106]
[1773234056789,2.5733679,85.17,85.141,6.12741676]
[1773234057088,2.5733679,85.19,85.141,6.12741676]
[1773234057893,10.564,85.188,85.141,6.12741676]
[1773234058590,10.565,85.183,85.143,6.13036748]
[1773234058789,2.5733679,85.18,85.143,6.13036748]
[1773234059093,2.93408916,85.179,85.143,6.13036748]
[1773234059393,2.93408916,85.178,85.143,6.13036748]
[1773234059593,2.93408916,85.177,85.143,6.13036748]
[1773234059793,2.5733679,85.17,85.12,2.5733679]
[1773234059987,2.93447107,85.169,85.13,6.12629043]
[1773234060188,2.93447107,85.168,85.13,6.12629043]
[1773234060387,2.93447107,85.167,85.13,6.12629043]
[1773234060595,10.567,85.166,85.13,6.12629043]
[1773234060792,2.5733679,85.17,85.13,6.12629043]
[1773234060993,2.5733679,85.15,85.114,6.12629043]
[1773234061195,2.93453025,85.149,85.114,6.12629043]
[1773234061394,2.5733679,85.14,85.114,6.12629043]
[1773234061698,2.5733679,85.14,85.105,6.11173821]
[1773234061899,10.569,85.148,85.105,6.11173821]
[1773234062092,2.9352064,85.147,85.105,6.11173821]
[1773234062399,2.9352064,85.146,85.106,16.68573821]
[1773234062599,2.9352064,85.145,85.106,16.68573821]
[1773234062797,10.569,85.148,85.106,16.68573821]
[1773234063000,2.5733679,85.13,85.098,10.575]
[1773234063195,2.5733679,85.13,85.093,6.11173821]
[1773234064396,8.8042949,85.169,85.11,2.5733679]
[1773234064601,2.5733679,85.16,85.111,6.06794218]
[1773234064801,2.5733679,85.13,85.091,6.06794218]
[1773234065001,2.93604226,85.129,85.091,6.06794218]
[1773234065200,2.5733679,85.13,85.091,6.06794218]
[1773234065201,2.93604226,85.128,85.091,6.06794218]
[1773234065395,10.95766568,85.167,85.091,6.06794218]
[1773234065396,2.93604226,85.127,85.091,6.06794218]
[1773234065700,2.5733679,85.14,85.093,6.08556202]
[1773234065904,2.93596896,85.139,85.093,6.08556202]
[1773234066201,2.93596896,85.138,85.093,6.08556202]